fUST/lending_fUST_20240615
["ID","MTS","AMOUNT","RATE_DAILY","PERIOD"]
[329550425,1718429460130,-500.0,0.00016438,2]
[329550427,1718429460141,-500.0,0.00016438,2]
[329550429,1718429460157,-2135.23,0.00016438,2]
[329550431,1718429460172,-974.15,0.00016438,2]
[329550433,1718429460186,-974.15,0.00016438,2]
[329550434,1718429460203,-974.15,0.00016438,2]
[329550435,1718429460221,-974.15,0.00016438,2]
[329550436,1718429460247,-974.15,0.00016438,2]
[329550437,1718429460268,-500.0,0.00016438,2]
[329550438,1718429460290,-500.0,0.00016438,2]
[329550439,1718429460313,-151.0,0.00016438,2]
[329550440,1718429460344,-151.0,0.00016438,2]
[329550441,1718429460377,-151.0,0.00016438,2]
[329550442,1718429460391,-151.0,0.00016438,2]
[329550443,1718429460445,-151.0,0.00016438,2]
[329550444,1718429460466,-151.0,0.00016438,2]
[329550445,1718429460478,-151.0,0.00016438,2]
[329550446,1718429460491,-151.0,0.00016438,2]
[329550447,1718429460513,-151.0,0.00016438,2]
[329550448,1718429460525,-151.0,0.00016438,2]
[329550449,1718429460542,-151.0,0.00016438,2]
[329550451,1718429460557,-151.0,0.00016438,2]
[329550453,1718429460569,-151.0,0.00016438,2]
[329550454,1718429460584,-151.0,0.00016438,2]
[329550457,1718429460610,-151.0,0.00016438,2]
[329550459,1718429460623,-163.081932,0.00016438,2]
[329550461,1718429460637,-974.15,0.00016442,2]
[329550462,1718429460669,-3870.42281124,0.00016443,2]
[329550464,1718429460720,-782.25845193,0.00016447,2]
[329550466,1718429460732,-391.64409686,0.00016448,2]
[329550468,1718429460745,-155.45947766,0.0001645,2]
[329550469,1718429460758,-164.27113289,0.0001645,2]
[329550471,1718429460776,-555.77985201,0.0001645,2]
[329550474,1718429460790,-156.18426125,0.0001645,2]
[329550476,1718429460836,-304.64326184,0.0001645,2]
[329550477,1718429460850,-229.00782064,0.0001645,2]
[329550479,1718429460863,-209.85141532,0.0001645,2]
[329550482,1718429460897,-191.5824556,0.0001645,2]
[329550485,1718429460910,-155.65429591,0.0001645,2]
[329550487,1718429460931,-155.97644236,0.0001645,2]
[329550489,1718429460956,-216.03410442,0.0001645,2]
[329550492,1718429460984,-205.01642419,0.0001645,2]
[329550495,1718429461003,-156.4626223,0.0001645,2]
[329550498,1718429461030,-218.58320247,0.0001645,2]
[329550500,1718429461044,-283.06592574,0.00016451,2]
[329550502,1718429461059,-205.17402447,0.00016451,2]
[329550504,1718429461079,-156.10050485,0.00016451,2]
[329550506,1718429461121,-500.0,0.00016451,2]
[329550509,1718429461176,-500.0,0.00016451,2]
[329550511,1718429461193,-500.0,0.00016451,2]
[329550512,1718429461205,-500.0,0.00016451,2]
[329550514,1718429461218,-974.15,0.00016451,2]
[329550515,1718429461231,-743.10491506,0.00016452,2]
[329550517,1718429461249,-155.74209797,0.00016452,2]
[329550519,1718429461265,-283.82188781,0.00016452,2]
[329550521,1718429461283,-182.4308279,0.00016452,2]
[329550523,1718429461297,-155.64705779,0.00016452,2]
[329550525,1718429461312,-252.94083217,0.00016452,2]
[329550527,1718429461326,-1815.92139578,0.00016452,2]
[329550529,1718429461337,-155.33401203,0.00016452,2]
[329550530,1718429461368,-318.97839725,0.00016452,2]
[329550532,1718429461379,-297.3394789,0.00016452,2]
[329550535,1718429461393,-157.10117086,0.00016452,2]
[329550537,1718429461436,-522.8681967,0.00016452,2]
[329550540,1718429461455,-157.02219222,0.00016452,2]
[329550541,1718429461466,-588.15578464,0.00016452,2]
[329550543,1718429461489,-256.78578324,0.00016452,2]
[329550545,1718429461502,-261.98418083,0.00016452,2]
[329550547,1718429461514,-10544.36124938,0.00016452,2]
[329550549,1718429461534,-159.61431466,0.00016452,2]
[329550551,1718429461545,-930.43714384,0.00016452,2]
[329550552,1718429461581,-158.56736119,0.00016452,2]
[329550554,1718429461596,-7033.50375945,0.00016452,2]
[329550556,1718429461611,-1289.77787333,0.00016452,2]
[329550558,1718429461624,-208.75725212,0.00016452,2]
[329550559,1718429461654,-200.53679153,0.00016452,2]
[329550562,1718429461680,-1187.26729287,0.00016452,2]
[329550564,1718429461698,-176.15882914,0.00016452,2]
[329550566,1718429461713,-299.11902658,0.00016452,2]
[329550567,1718429461728,-195.799692,0.00016452,2]
[329550569,1718429461739,-274.69170913,0.00016452,2]
[329550571,1718429461751,-305.35739104,0.00016452,2]
[329550573,1718429461767,-695.7162405,0.00016452,2]
[329550575,1718429461779,-948.75619501,0.00016453,2]
[329550577,1718429461790,-500.0,0.00016453,2]
[329550579,1718429461805,-500.0,0.00016453,2]
[329550581,1718429461827,-500.0,0.00016453,2]
[329550583,1718429461838,-500.0,0.00016453,2]
[329550585,1718429461872,-500.0,0.00016453,2]
[329550587,1718429461884,-974.15,0.00016453,2]
[329550589,1718429461909,-46661.52391703,0.00016454,2]
[329550592,1718429461936,-500.0,0.00016487,2]
[329550593,1718429461957,-156.48384151,0.00016488,2]
[329550595,1718429461976,-10358.53485452,0.00016488,2]
[329550597,1718429461988,-1452.0164545,0.00016489,2]
[329550600,1718429462002,-288.72438564,0.00016493,2]
[329550602,1718429462030,-1098.78852545,0.00016497,2]
[329550604,1718429462064,-276.01800633,0.00016498,2]
[329550607,1718429462097,-499.0,0.000165,7]
[329550609,1718429462112,-446.26948993,0.00016612,2]
[329550610,1718429462125,-500.0,0.00016711,2]
[329550612,1718429462136,-500.0,0.00016711,2]
[329550614,1718429462146,-500.0,0.00016711,2]
[329550615,1718429462159,-500.0,0.00016711,2]
[329550617,1718429462174,-500.0,0.00016711,2]
[329550619,1718429462187,-500.0,0.00016711,2]
[329550622,1718429462211,-270.81004488,0.00016711,2]
[329550623,1718429462234,-974.15,0.00016711,2]
[329550625,1718429462253,-974.15,0.00016711,2]
[329550627,1718429462277,-190.71890997,0.00016711,2]
[329550671,1718429463035,-151.0,0.00016437,2]
[329550673,1718429463046,-151.0,0.00016438,2]
[329550675,1718429463058,-151.0,0.00016438,2]
[329550678,1718429463082,-162.89436,0.00016438,2]
[329550680,1718429463124,-783.43109003,0.00016711,2]
[329550681,1718429463164,-500.0,0.00016712,2]
[329550683,1718429463190,-500.0,0.00016712,2]
[329550686,1718429463257,-500.0,0.00016712,2]
[329550688,1718429463294,-500.0,0.00016712,2]
[329550689,1718429463305,-500.0,0.00016712,2]
[329550691,1718429463342,-500.0,0.00016712,2]
[329550693,1718429463363,-500.0,0.00016712,2]
[329550695,1718429463428,-255.31964882,0.00016712,2]
[329550698,1718429463481,-274.67085049,0.00016712,2]
[329550699,1718429463532,-500.0,0.00016712,2]
[329550701,1718429463545,-500.0,0.00016712,2]
[329550703,1718429463578,-500.0,0.00016712,2]
[329550705,1718429463601,-500.0,0.00016712,2]
[329550707,1718429463626,-500.0,0.00016712,2]
[329550709,1718429463655,-500.0,0.00016712,2]
[329550712,1718429463724,-500.0,0.00016712,2]
[329550714,1718429463768,-500.0,0.00016712,2]
[329550716,1718429463789,-80.68405365,0.00016712,2]
[329550733,1718429464330,-267.45300945,0.00016712,2]
[329550748,1718429464658,-152.8329369,0.00016712,2]
[329550750,1718429464670,-500.0,0.00016712,2]
[329550752,1718429464681,-500.0,0.00016712,2]
[329550753,1718429464692,-877.83,0.00016712,2]
[329550755,1718429464705,-500.0,0.00016712,2]
[329550756,1718429464716,-349.64197741,0.00016712,2]
[329550757,1718429464727,-500.0,0.00016712,2]
[329550758,1718429464742,-500.0,0.00016712,2]
[329550759,1718429464753,-500.0,0.00016712,2]
[329550760,1718429464763,-500.0,0.00016712,2]
[329550761,1718429464774,-500.0,0.00016712,2]
[329550762,1718429464787,-500.0,0.00016712,2]
[329550763,1718429464799,-500.0,0.00016712,2]
[329550764,1718429464815,-500.0,0.00016712,2]
[329550765,1718429464833,-503.22967273,0.00016712,2]
[329550766,1718429464844,-500.0,0.00016712,2]
[329550767,1718429464854,-765.44,0.00016712,2]
[329550768,1718429464865,-46.05607296,0.00016712,2]
[329550769,1718429464877,-453.94392704,0.00016712,2]
[329550770,1718429464889,-500.0,0.00016712,2]
[329550771,1718429464901,-500.0,0.00016712,2]
[329550773,1718429464917,-607.45,0.00016712,2]
[329550776,1718429464937,-332.16240236,0.00016712,2]
[329550778,1718429464954,-500.0,0.00016712,2]
[329550780,1718429464966,-500.0,0.00016712,2]
[329550782,1718429464980,-500.0,0.00016712,2]
[329550783,1718429464995,-500.0,0.00016712,2]
[329550785,1718429465010,-500.0,0.00016712,2]
[329550787,1718429465035,-110.88990571,0.00016712,2]
[329552267,1718430018677,273.37336231,9.9e-05,2]
[329552268,1718430035069,273.37336231,9.9e-05,2]
[329552269,1718430050669,273.37336231,9.9e-05,2]
[329552270,1718430059269,273.37336231,9.9e-05,2]
[329552271,1718430067797,273.37336231,9.9e-05,2]
[329552272,1718430076408,273.37336231,9.9e-05,2]
[329552273,1718430084619,273.37336231,9.9e-05,2]
[329552274,1718430092936,273.37336231,9.9e-05,2]
[329552275,1718430102393,273.37336231,9.9e-05,2]
[329552276,1718430110908,273.37336231,9.9e-05,2]
[329552277,1718430119784,273.37336231,9.9e-05,2]
[329552278,1718430128576,273.37336231,9.9e-05,2]
[329552280,1718430137433,273.37336231,9.9e-05,2]
[329552281,1718430145406,273.37336231,9.9e-05,2]
[329552282,1718430154267,273.37336231,9.9e-05,2]
[329552283,1718430163018,273.37336231,9.9e-05,2]
[329552284,1718430172431,273.37336231,9.9e-05,2]
[329552285,1718430202953,273.37336231,9.9e-05,2]
[329552286,1718430211771,273.37336231,9.9e-05,2]
[329552287,1718430219990,273.37336231,9.9e-05,2]
[329552288,1718430228177,273.37336231,9.9e-05,2]
[329552289,1718430237474,273.37336231,9.9e-05,2]
[329552290,1718430245487,273.37336231,9.9e-05,2]
[329552291,1718430262560,273.37336231,9.9e-05,2]
[329552292,1718430269226,273.37336231,9.9e-05,2]
[329552293,1718430277484,273.37336231,9.9e-05,2]
[329552294,1718430285969,273.37336231,9.9e-05,2]
[329552295,1718430294266,273.37336231,9.9e-05,2]
[329552296,1718430303331,273.37336231,9.9e-05,2]
[329552297,1718430311780,273.37336231,9.9e-05,2]
[329552298,1718430320331,273.37336231,9.9e-05,2]
[329552299,1718430329737,273.37336231,9.9e-05,2]
[329552300,1718430339046,273.37336231,9.9e-05,2]
[329552301,1718430347290,273.37336231,9.9e-05,2]
[329552302,1718430355369,273.37336231,9.9e-05,2]
[329552303,1718430363564,273.37336231,9.9e-05,2]
[329552304,1718430372266,273.37336231,9.9e-05,2]
[329552305,1718430382649,273.37336231,9.9e-05,2]
[329552306,1718430389091,273.37336231,9.9e-05,2]
[329552307,1718430397587,273.37336231,9.9e-05,2]
[329552308,1718430406158,273.37336231,9.9e-05,2]
[329552309,1718430414450,273.37336231,9.9e-05,2]
[329552310,1718430422483,273.37336231,9.9e-05,2]
[329552311,1718430430955,273.37336231,9.9e-05,2]
[329552315,1718430439536,273.37336231,9.9e-05,2]
[329552316,1718430447984,273.37336231,9.9e-05,2]
[329552317,1718430456470,273.37336231,9.9e-05,2]
[329552318,1718430464804,273.37336231,9.9e-05,2]
[329552319,1718430473391,273.37336231,9.9e-05,2]
[329552320,1718430482317,273.37336231,9.9e-05,2]
[329552321,1718430490256,273.37336231,9.9e-05,2]
[329552322,1718430499577,273.37336231,9.9e-05,2]
[329552323,1718430507864,273.37336231,9.9e-05,2]
[329552324,1718430516302,273.37336231,9.9e-05,2]
[329552325,1718430519393,150.84,0.00023,30]
[329552327,1718430524812,273.37336231,9.9e-05,2]
[329552328,1718430533536,273.37336231,9.9e-05,2]
[329552329,1718430542143,273.37336231,9.9e-05,2]
[329552330,1718430550402,273.37336231,9.9e-05,2]
[329552331,1718430558517,273.37336231,9.9e-05,2]
[329552332,1718430566799,273.37336231,9.9e-05,2]
[329552333,1718430574874,273.37336231,9.9e-05,2]
[329552334,1718430584951,273.37336231,9.9e-05,2]
[329552335,1718430593108,273.37336231,9.9e-05,2]
[329552336,1718430602317,273.37336231,9.9e-05,2]
[329552337,1718430610357,273.37336231,9.9e-05,2]
[329552338,1718430618844,273.37336231,9.9e-05,2]
[329552339,1718430627446,273.37336231,9.9e-05,2]
[329552382,1718430635925,273.37336231,9.9e-05,2]
[329552440,1718430641386,-423.575011,0.00015571,2]
[329552441,1718430641417,-253.0409673,0.00016338,2]
[329552443,1718430641437,-1101.38897881,0.00016436,2]
[329552445,1718430641460,-500.0,0.00016438,2]
[329552447,1718430641481,-63.72927643,0.00016438,2]
[329552466,1718430645263,273.37336231,9.9e-05,2]
[329552474,1718430647175,-436.27072357,0.00016438,2]
[329552475,1718430647231,-500.0,0.00016438,2]
[329552476,1718430647249,-500.0,0.00016438,2]
[329552477,1718430647263,-500.0,0.00016438,2]
[329552478,1718430647280,-500.0,0.00016438,2]
[329552479,1718430647301,-500.0,0.00016438,2]
[329552480,1718430647330,-107.67528642,0.00016438,2]
[329552481,1718430647619,-383.92990745,0.00016438,2]
[329552482,1718430647641,-500.0,0.00016438,2]
[329552483,1718430647670,-236.55639297,0.00016438,2]
[329552484,1718430647695,-505.50268366,0.00016438,2]
[329552485,1718430647711,-500.0,0.00016438,2]
[329552486,1718430647761,-502.47940997,0.00016438,2]
[329552487,1718430647773,-500.0,0.00016438,2]
[329552488,1718430647785,-537.84,0.00016438,2]
[329552489,1718430647796,-500.0,0.00016438,2]
[329552490,1718430647832,-500.0,0.00016438,2]
[329552491,1718430647843,-590.73075888,0.00016438,2]
[329552492,1718430647856,-500.0,0.00016438,2]
[329552493,1718430647876,-804.68,0.00016438,2]
[329552494,1718430647890,-500.0,0.00016438,2]
[329552495,1718430647909,-500.0,0.00016438,2]
[329552497,1718430647920,-500.0,0.00016438,2]
[329552500,1718430647946,-500.0,0.00016438,2]
[329552501,1718430647963,-511.52837509,0.00016438,2]
[329552503,1718430647995,-500.0,0.00016438,2]
[329552505,1718430648023,-500.0,0.00016438,2]
[329552506,1718430648033,-506.75348073,0.00016438,2]
[329552507,1718430648060,-500.0,0.00016438,2]
[329552508,1718430648084,-500.0,0.00016438,2]
[329552509,1718430648098,-500.0,0.00016438,2]
[329552510,1718430648117,-701.66,0.00016438,2]
[329552511,1718430648135,-500.0,0.00016438,2]
[329552512,1718430648155,-500.0,0.00016438,2]
[329552513,1718430648171,-503.94912556,0.00016438,2]
[329552514,1718430648199,-500.0,0.00016438,2]
[329552515,1718430648234,-479.23166351,0.00016438,2]
[329552516,1718430648269,-556.83,0.00016438,2]
[329552517,1718430648281,-500.0,0.00016438,2]
[329552518,1718430648294,-500.0,0.00016438,2]
[329552519,1718430648310,-500.0,0.00016438,2]
[329552520,1718430648324,-500.0,0.00016438,2]
[329552521,1718430648340,-500.0,0.00016438,2]
[329552522,1718430648355,-500.0,0.00016438,2]
[329552523,1718430648375,-437.68237817,0.00016438,2]
[329552524,1718430648385,-500.0,0.00016438,2]
[329552526,1718430648399,-500.0,0.00016438,2]
[329552527,1718430648411,-500.0,0.00016438,2]
[329552528,1718430648455,-500.0,0.00016438,2]
[329552529,1718430648486,-500.0,0.00016438,2]
[329552530,1718430648540,-500.0,0.00016438,2]
[329552531,1718430648562,-500.0,0.00016438,2]
[329552532,1718430648592,-500.0,0.00016438,2]
[329552533,1718430648617,-1004.5,0.00016438,2]
[329552534,1718430648645,-500.0,0.00016438,2]
[329552535,1718430648666,-500.0,0.00016438,2]
[329552536,1718430648697,-500.0,0.00016438,2]
[329552537,1718430648716,-500.0,0.00016438,2]
[329552538,1718430648730,-586.55,0.00016438,2]
[329552539,1718430648742,-473.47144283,0.00016438,2]
[329552540,1718430648756,-500.0,0.00016438,2]
[329552541,1718430648767,-500.0,0.00016438,2]
[329552542,1718430648782,-500.0,0.00016438,2]
[329552543,1718430648792,-500.0,0.00016438,2]
[329552544,1718430648806,-500.0,0.00016438,2]
[329552545,1718430648816,-500.0,0.00016438,2]
[329552546,1718430648829,-500.0,0.00016438,2]
[329552547,1718430648840,-901.62,0.00016438,2]
[329552548,1718430648855,-500.0,0.00016438,2]
[329552549,1718430648866,-417.42757665,0.00016438,2]
[329552550,1718430648879,-500.0,0.00016438,2]
[329552551,1718430648937,-503.0,0.00016438,2]
[329552552,1718430648965,-695.73,0.00016438,2]
[329552553,1718430648997,-506.33785986,0.00016438,2]
[329552554,1718430649009,-500.0,0.00016438,2]
[329552555,1718430649021,-500.0,0.00016438,2]
[329552556,1718430649033,-500.0,0.00016438,2]
[329552557,1718430649074,-500.0,0.00016438,2]
[329552558,1718430649096,-500.0,0.00016438,2]
[329552559,1718430649108,-1512.46,0.00016438,2]
[329552561,1718430649148,-500.0,0.00016438,2]
[329552563,1718430649166,-1454.04,0.00016438,2]
[329552564,1718430649187,-500.0,0.00016438,2]
[329552565,1718430649229,-500.0,0.00016438,2]
[329552566,1718430649250,-500.0,0.00016438,2]
[329552567,1718430649280,-500.0,0.00016438,2]
[329552568,1718430649299,-2198.11,0.00016438,2]
[329552569,1718430649360,-500.0,0.00016438,2]
[329552570,1718430649385,-500.0,0.00016438,2]
[329552571,1718430649462,-3382.18,0.00016438,2]
[329552572,1718430649524,-500.0,0.00016438,2]
[329552573,1718430649543,-500.0,0.00016438,2]
[329552574,1718430649554,-533.82895435,0.00016438,2]
[329552576,1718430649566,-500.0,0.00016438,2]
[329552577,1718430649604,-253.48524119,0.00016438,2]
[329552578,1718430649626,-735.64,0.00016438,2]
[329552579,1718430649655,-320.90487386,0.00016438,2]
[329552580,1718430649668,-500.0,0.00016438,2]
[329552581,1718430649682,-500.0,0.00016438,2]
[329552582,1718430649720,-500.0,0.00016438,2]
[329552583,1718430649747,-500.0,0.00016438,2]
[329552584,1718430649786,-502.0582763,0.00016438,2]
[329552585,1718430649835,-597.23,0.00016438,2]
[329552586,1718430649847,-500.0,0.00016438,2]
[329552587,1718430649869,-6267.12,0.00016438,2]
[329552588,1718430649882,-500.0,0.00016438,2]
[329552589,1718430649894,-500.0,0.00016438,2]
[329552590,1718430649940,-507.47047557,0.00016438,2]
[329552591,1718430649958,-938.6,0.00016438,2]
[329552592,1718430649977,-500.0,0.00016438,2]
[329552593,1718430649996,-500.0,0.00016438,2]
[329552594,1718430650011,-500.0,0.00016438,2]
[329552595,1718430650057,-500.0,0.00016438,2]
[329552596,1718430650096,-1810.06,0.00016438,2]
[329552597,1718430650158,-504.24214208,0.00016438,2]
[329552598,1718430650189,-500.0,0.00016438,2]
[329552599,1718430650203,-8932.68,0.00016438,2]
[329552600,1718430650236,-246.32581133,0.00016438,2]
[329552601,1718430650252,-500.0,0.00016438,2]
[329552602,1718430650270,-711.27,0.00016438,2]
[329552603,1718430650282,-2284.05,0.00016438,2]
[329552604,1718430650296,-500.0,0.00016438,2]
[329552605,1718430650330,-500.0,0.00016438,2]
[329552606,1718430650376,-500.0,0.00016438,2]
[329552607,1718430650441,-500.0,0.00016438,2]
[329552608,1718430650488,-500.0,0.00016438,2]
[329552609,1718430650652,-500.0,0.00016438,2]
[329552610,1718430650677,-507.48708702,0.00016438,2]
[329552611,1718430650711,-511.07454243,0.00016438,2]
[329552612,1718430650721,-1622.91378814,0.00016438,2]
[329552613,1718430650812,814.51,0.00014,2]
[329552614,1718430651192,-314.07118885,0.00016437,2]
[329552615,1718430651210,-4920.70621186,0.00016438,2]
[329552616,1718430651234,-500.0,0.00016438,2]
[329552617,1718430651245,-475.49753392,0.00016438,2]
[329552618,1718430651256,-500.0,0.00016438,2]
[329552619,1718430651271,-500.0,0.00016438,2]
[329552620,1718430651287,-500.0,0.00016438,2]
[329552621,1718430651302,-4519.14,0.00016438,2]
[329552622,1718430651329,-500.0,0.00016438,2]
[329552623,1718430651353,-511.55411391,0.00016438,2]
[329552624,1718430651385,-500.0,0.00016438,2]
[329552625,1718430651421,-500.0,0.00016438,2]
[329552626,1718430651442,-609.4,0.00016438,2]
[329552627,1718430651503,-500.0,0.00016438,2]
[329552628,1718430651543,-500.0,0.00016438,2]
[329552629,1718430651554,-500.0,0.00016438,2]
[329552630,1718430651571,-500.0,0.00016438,2]
[329552631,1718430651581,-500.0,0.00016438,2]
[329552632,1718430651599,-1094.75886365,0.00016438,2]
[329552633,1718430654181,273.37336231,9.9e-05,2]
[329552634,1718430662210,273.37336231,9.9e-05,2]
[329552635,1718430671821,273.37336231,9.9e-05,2]
[329552636,1718430695160,273.37336231,9.9e-05,2]
[329552637,1718430704150,273.37336231,9.9e-05,2]
[329552638,1718430712382,273.37336231,9.9e-05,2]
[329552639,1718430720987,273.37336231,9.9e-05,2]
[329552640,1718430730067,273.37336231,9.9e-05,2]
[329552641,1718430738137,273.37336231,9.9e-05,2]
[329552642,1718430746575,273.37336231,9.9e-05,2]
[329552643,1718430755175,273.37336231,9.9e-05,2]
[329552644,1718430763766,273.37336231,9.9e-05,2]
[329552645,1718430773050,273.37336231,9.9e-05,2]
[329552646,1718430782012,273.37336231,9.9e-05,2]
[329552647,1718430790231,273.37336231,9.9e-05,2]
[329552648,1718430799060,273.37336231,9.9e-05,2]
[329552650,1718430807128,273.37336231,9.9e-05,2]
[329552651,1718430815439,273.37336231,9.9e-05,2]
[329552652,1718430823946,273.37336231,9.9e-05,2]
[329552653,1718430833177,273.37336231,9.9e-05,2]
[329552654,1718430841472,273.37336231,9.9e-05,2]
[329552655,1718430850618,273.37336231,9.9e-05,2]
[329552656,1718430858969,273.37336231,9.9e-05,2]
[329552657,1718430867767,273.37336231,9.9e-05,2]
[329552658,1718430876822,273.37336231,9.9e-05,2]
[329552659,1718430884822,273.37336231,9.9e-05,2]
[329552660,1718430893900,273.37336231,9.9e-05,2]
[329552661,1718430902626,221.15269578,9.9e-05,2]
[329552662,1718431307282,1000.0,0.00025,60]
[329552689,1718431781219,165.80260909,9.9e-05,2]
[329552690,1718431797035,-460.96995068,0.00016338,2]
[329552691,1718431797081,-98.00261218,0.00016338,2]
[329552724,1718431835539,-88.01174212,0.00016338,2]
[329552725,1718431835550,-155.5603845,0.00016435,2]
[329552726,1718431835590,-587.98170311,0.00016435,2]
[329552727,1718431835612,-1361.0237737,0.00016436,2]
[329552750,1718431847957,-1006.89254001,0.00016436,2]
[329552751,1718431847997,-300.0,0.00016436,2]
[329552754,1718431848074,-300.0,0.00016436,2]
[329552756,1718431848091,-16370.52147978,0.00016437,2]
[329552757,1718431851023,-844.1777949,0.00016435,2]
[329552758,1718431851034,-598.17723186,0.00016437,2]
[329552817,1718431852148,-331.895,0.00016437,2]
[329552833,1718431852486,-549.10797567,0.00016437,2]
[329552841,1718431852655,-631.98288245,0.00016437,2]
[329552843,1718431852692,-16996.89353558,0.00016437,2]
[329552844,1718431852706,-500.0,0.00016438,2]
[329552846,1718431852741,-500.0,0.00016438,2]
[329552848,1718431852753,-280.44831799,0.00016438,2]
[329552849,1718431852776,-553.77,0.00016438,2]
[329552851,1718431852789,-500.0,0.00016438,2]
[329552853,1718431852824,-500.0,0.00016438,2]
[329552855,1718431852844,-425.30963849,0.00016438,2]
[329552857,1718431852860,-415.34769134,0.00016438,2]
[329552858,1718431852882,-504.99409292,0.00016438,2]
[329552860,1718431852913,-500.0,0.00016438,2]
[329552862,1718431852925,-500.0,0.00016438,2]
[329552864,1718431852944,-500.0,0.00016438,2]
[329552866,1718431852960,-510.99609868,0.00016438,2]
[329552868,1718431852986,-500.0,0.00016438,2]
[329552870,1718431853001,-500.0,0.00016438,2]
[329552872,1718431853017,-500.0,0.00016438,2]
[329552874,1718431853040,-500.0,0.00016438,2]
[329552876,1718431853052,-500.0,0.00016438,2]
[329552878,1718431853069,-500.0,0.00016438,2]
[329552880,1718431853093,-500.0,0.00016438,2]
[329552882,1718431853104,-500.0,0.00016438,2]
[329552884,1718431853115,-500.0,0.00016438,2]
[329552886,1718431853126,-552.19818538,0.00016438,2]
[329552887,1718431853137,-500.0,0.00016438,2]
[329552889,1718431853147,-510.44742275,0.00016438,2]
[329552892,1718431853165,-500.0,0.00016438,2]
[329552894,1718431853178,-500.0,0.00016438,2]
[329552896,1718431853197,-522.26329465,0.00016438,2]
[329552898,1718431853221,-854.48,0.00016438,2]
[329552900,1718431853232,-511.39732796,0.00016438,2]
[329552901,1718431853245,-502.70369893,0.00016438,2]
[329552903,1718431853269,-500.0,0.00016438,2]
[329552906,1718431853313,-270.80089005,0.00016438,2]
[329552908,1718431853339,-500.0,0.00016438,2]
[329552910,1718431853367,-500.0,0.00016438,2]
[329552912,1718431853378,-500.0,0.00016438,2]
[329552914,1718431853390,-776.59,0.00016438,2]
[329552915,1718431853420,-507.80413817,0.00016438,2]
[329552918,1718431853448,-481.79815286,0.00016438,2]
[329552920,1718431853468,-500.0,0.00016438,2]
[329552922,1718431853494,-500.0,0.00016438,2]
[329552923,1718431853505,-500.0,0.00016438,2]
[329552925,1718431853519,-500.0,0.00016438,2]
[329552927,1718431853533,-624.28,0.00016438,2]
[329552929,1718431853553,-500.0,0.00016438,2]
[329552931,1718431853564,-500.0,0.00016438,2]
[329552933,1718431853585,-500.0,0.00016438,2]
[329552934,1718431853600,-1189.26,0.00016438,2]
[329552936,1718431853639,-288.68929821,0.00016438,2]
[329552937,1718431853656,-500.0,0.00016438,2]
[329552939,1718431853682,-500.0,0.00016438,2]
[329552941,1718431853705,-500.0,0.00016438,2]
[329552943,1718431853716,-500.0,0.00016438,2]
[329552944,1718431853728,-514.67661298,0.00016438,2]
[329552946,1718431853750,-505.76896261,0.00016438,2]
[329552948,1718431853769,-500.0,0.00016438,2]
[329552950,1718431853793,-500.0,0.00016438,2]
[329552953,1718431853807,-500.0,0.00016438,2]
[329552954,1718431853822,-562.11,0.00016438,2]
[329552957,1718431853834,-500.0,0.00016438,2]
[329552959,1718431853853,-500.0,0.00016438,2]
[329552961,1718431853868,-500.0,0.00016438,2]
[329552963,1718431853897,-968.22,0.00016438,2]
[329552965,1718431853945,-510.83759067,0.00016438,2]
[329552966,1718431853956,-506.17326596,0.00016438,2]
[329552967,1718431853981,-505.41465183,0.00016438,2]